[Event "FIDE World Rapid-ch Open 2018"]
[White "Fridman, Daniel"]
[Black "Antipov, Mikhail Al."]
[Site "St. Petersburg"]
[Round "14.20"]
[Annotator "ChessBase"]
[Result "1-0"]
[Date "2018.12.28"]
[WhiteElo "2633"]
[BlackElo "2589"]
[PlyCount "81"]
[TimeControl "900+10"]

1. Nf3 {[%emt 0:0:0]} Nf6 {[%emt 0:0:0]} 2. c4 {[%emt 0:0:0]} c6 {[%emt 0:0:0]
} 3. d4 {[%emt 0:0:0]} d5 {[%emt 0:0:0]} 4. g3 {[%emt 0:0:0]} Bf5 {[%emt 0:0:0]} 5. Nc3 {[%emt 0:0:21]} e6 {[%emt 0:0:0]} 6. Nh4 {[%emt 0:0:3]
} Bg4 {[%emt 0:0:1]} 7. Qb3 {[%emt 0:0:14]} Qb6 {[%emt 0:0:0]} 8. c5 {[%emt 0:0:7]} Qc7 {[%emt 0:0:3]} 9. Bf4 {[%emt 0:0:9]} Qc8 {[%emt 0:0:2]
} 10. h3 {[%emt 0:1:33]} Bh5 {[%emt 0:0:1]} 11. g4 {[%emt 0:0:0]} Bg6 {[%emt 0:0:1]} 12. Nxg6 {[%emt 0:0:3]} hxg6 {[%emt 0:0:1]} 13. Bg2 {[%emt 0:0:2]} Nbd7 {[%emt 0:0:30]} 14. Bg3 {[%emt 0:0:13]} Be7 {[%emt 0:1:23]
} 15. e3 {[%emt 0:0:10]} Kf8 {[%emt 0:2:6]} 16. Qc2 {[%emt 0:0:0]} Ne8 {[%emt 0:1:35]} 17. 0-0 {[%emt 0:0:21]} Bh4 {[%emt 0:1:32]} 18. Bh2 {[%emt 0:0:8]} Kg8 {[%emt 0:0:9]} 19. b4 {[%emt 0:0:8]} Bd8 {[%emt 0:0:0]} 20. b5 {[%emt 0:0:22]} Bc7 {[%emt 0:0:5]} 21. Bxc7 {[%emt 0:0:24]} Qxc7 {[%emt 0:1:21]} 22. Rab1 {[%emt 0:0:48]} Nf8 {[%emt 0:3:8]} 23. bxc6 {[%emt 0:1:1]
} bxc6 {[%emt 0:0:2]} 24. Rb2 {[%emt 0:2:48]} e5 {[%emt 0:0:0]} 25. Rfb1 {[%emt 0:1:18]} exd4 {[%emt 0:0:2]} 26. exd4 {[%emt 0:0:2]} Ne6 {[%emt 0:0:10]} 27. Ne2 {[%emt 0:0:3]} g5 {[%emt 0:0:25]} 28. Rb7 {[%emt 0:0:38]
} Qc8 {[%emt 0:0:39]} 29. Qf5 {[%emt 0:0:35]} N8c7 {[%emt 0:0:0]} 30. Qe5 {[%emt 0:0:22]} Nb5 {[%emt 0:3:50]} 31. R1xb5 {[%emt 0:1:33]} cxb5 {[%emt 0:0:1]} 32. Bxd5 {[%emt 0:0:2]} Rh6 {[%emt 0:0:1]} 33. Ng3 {[%emt 0:0:20]
} Qf8 {[%emt 0:0:32]} 34. Nf5 {[%emt 0:2:8]} Rf6 {[%emt 0:0:0]} 35. Nd6 {[%emt 0:0:8]} Kh8 {[%emt 0:0:7]} 36. Rxf7 {[%emt 0:1:51]} Rxf7 {[%emt 0:0:1]} 37. Nxf7+ {[%emt 0:0:2]} Qxf7 {[%emt 0:0:1]} 38. Bxe6 {[%emt 0:0:45]} Qe7 {[%emt 0:0:5]} 39. c6 {[%emt 0:0:4]} Re8 {[%emt 0:0:0]} 40. c7 {[%emt 0:0:9]} Qa3 {[%emt 0:0:1]} 41. Qc5 {[%emt 0:0:29]} 1-0

[Event "FIDE World Rapid-ch Open 2018"]
[White "Amin, Bassem"]
[Black "Le, Quang Liem"]
[Site "St. Petersburg"]
[Round "14.22"]
[Annotator "ChessBase"]
[Result "0-1"]
[Date "2018.12.28"]
[WhiteElo "2710"]
[BlackElo "2714"]
[PlyCount "64"]
[TimeControl "900+10"]

1. e4 {[%emt 0:0:0]} c5 {[%emt 0:0:0]} 2. Nf3 {[%emt 0:0:0]} Nc6 {[%emt 0:0:0]
} 3. Bb5 {[%emt 0:0:7]} g6 {[%emt 0:0:0]} 4. Bxc6 {[%emt 0:0:0]} dxc6 {[%emt 0:0:0]} 5. d3 {[%emt 0:0:2]} Bg7 {[%emt 0:0:0]} 6. h3 {[%emt 0:0:1]} Nf6 {[%emt 0:0:4]} 7. Nc3 {[%emt 0:0:2]} Nd7 {[%emt 0:0:0]} 8. Be3 {[%emt 0:0:3]} e5 {[%emt 0:0:9]} 9. Qd2 {[%emt 0:0:2]} h6 {[%emt 0:0:10]
} 10. 0-0 {[%emt 0:0:4]} Qe7 {[%emt 0:0:12]} 11. Nh2 {[%emt 0:0:0]} Nf8 {[%emt 0:0:5]} 12. f4 {[%emt 0:0:2]} exf4 {[%emt 0:0:3]} 13. Bxf4 {[%emt 0:0:2]} Be6 {[%emt 0:0:24]} 14. Rae1 {[%emt 0:0:20]} g5 {[%emt 0:0:17]
} 15. Bg3 {[%emt 0:0:6]} Ng6 {[%emt 0:0:20]} 16. Nd5 {[%emt 0:0:0]} cxd5 {[%emt 0:0:7]} 17. exd5 {[%emt 0:0:2]} 0-0 {[%emt 0:0:18]} 18. Nf3 {[%emt 0:0:28]} Rad8 {[%emt 0:3:15]} 19. dxe6 {[%emt 0:0:6]} f5 {[%emt 0:0:1]
} 20. c3 {[%emt 0:1:52]} Rf6 {[%emt 0:0:31]} 21. Qc2 {[%emt 0:0:0]} Rxe6 {[%emt 0:1:44]} 22. Qb3 {[%emt 0:0:8]} Nf8 {[%emt 0:0:5]} 23. Rxe6 {[%emt 0:0:22]} Qxe6 {[%emt 0:0:4]} 24. Qxb7 {[%emt 0:0:8]} Rxd3 {[%emt 0:0:17]
} 25. Qxa7 {[%emt 0:4:34]} g4 {[%emt 0:0:38]} 26. Re1 {[%emt 0:0:0]} Qd5 {[%emt 0:1:50]} 27. Be5 {[%emt 0:3:12]} Bxe5 {[%emt 0:0:6]} 28. Rxe5 {[%emt 0:0:56]} Rd1+ {[%emt 0:0:6]} 29. Kf2 {[%emt 0:1:22]} Qd3 {[%emt 0:0:59]
} 30. hxg4 {[%emt 0:0:43]} fxg4 {[%emt 0:0:37]} 31. Ne1 {[%emt 0:0:7]
} g3+ {[%emt 0:0:18]} 32. Kg1 {[%emt 0:0:7]} Qd2 {[%emt 0:0:0]} 0-1

[Event "FIDE World Rapid-ch Open 2018"]
[White "Sakaev, Konstantin"]
[Black "Mamedov, Rauf"]
[Site "St. Petersburg"]
[Round "14.23"]
[Annotator "ChessBase"]
[Result "1-0"]
[Date "2018.12.28"]
[WhiteElo "2584"]
[BlackElo "2703"]
[PlyCount "101"]
[TimeControl "900+10"]

1. d4 {[%emt 0:0:0]} d6 {[%emt 0:0:0]} 2. Nf3 {[%emt 0:0:9]} Nf6 {[%emt 0:0:0]
} 3. c4 {[%emt 0:0:3]} g6 {[%emt 0:0:0]} 4. Nc3 {[%emt 0:0:0]} Bf5 {[%emt 0:0:0]} 5. e3 {[%emt 0:0:26]} Bg7 {[%emt 0:0:0]} 6. Bd3 {[%emt 0:0:8]
} Bxd3 {[%emt 0:0:1]} 7. Qxd3 {[%emt 0:0:2]} 0-0 {[%emt 0:0:0]} 8. 0-0 {[%emt 0:0:3]} c5 {[%emt 0:0:2]} 9. d5 {[%emt 0:0:17]} Nbd7 {[%emt 0:0:8]
} 10. h3 {[%emt 0:0:20]} Re8 {[%emt 0:0:9]} 11. e4 {[%emt 0:0:0]} e5 {[%emt 0:0:58]} 12. dxe6 {[%emt 0:1:4]} Rxe6 {[%emt 0:0:1]} 13. Bf4 {[%emt 0:0:17]} Nh5 {[%emt 0:1:0]} 14. Bh2 {[%emt 0:0:48]} Bxc3 {[%emt 0:0:49]
} 15. Qxc3 {[%emt 0:0:59]} Qf6 {[%emt 0:1:32]} 16. Qxf6 {[%emt 0:1:50]
} Nhxf6 {[%emt 0:0:1]} 17. Ng5 {[%emt 0:0:26]} Ree8 {[%emt 0:0:0]} 18. Bxd6 {[%emt 0:1:44]} h6 {[%emt 0:0:7]} 19. Nf3 {[%emt 0:0:2]} Nxe4 {[%emt 0:0:4]} 20. Bf4 {[%emt 0:1:30]} g5 {[%emt 0:0:7]} 21. Be3 {[%emt 0:1:4]
} f5 {[%emt 0:0:2]} 22. Rfe1 {[%emt 0:0:17]} f4 {[%emt 0:0:0]} 23. Bd2 {[%emt 0:0:2]} a6 {[%emt 0:4:16]} 24. Rad1 {[%emt 0:0:36]} Ndf6 {[%emt 0:0:47]} 25. b3 {[%emt 0:2:21]} b5 {[%emt 0:0:7]} 26. Ba5 {[%emt 0:0:36]
} b4 {[%emt 0:0:32]} 27. a3 {[%emt 0:0:18]} bxa3 {[%emt 0:0:0]} 28. Ra1 {[%emt 0:0:1]} h5 {[%emt 0:0:55]} 29. Rxa3 {[%emt 0:0:47]} g4 {[%emt 0:0:1]} 30. hxg4 {[%emt 0:0:3]} hxg4 {[%emt 0:0:2]} 31. Nd2 {[%emt 0:0:28]
} Ng5 {[%emt 0:1:46]} 32. Raa1 {[%emt 0:0:17]} Kf7 {[%emt 0:0:0]} 33. Bc7 {[%emt 0:0:14]} f3 {[%emt 0:1:5]} 34. Bf4 {[%emt 0:0:18]} Ne6 {[%emt 0:0:4]} 35. Be3 {[%emt 0:0:1]} fxg2 {[%emt 0:1:16]} 36. Kxg2 {[%emt 0:0:5]
} Red8 {[%emt 0:0:11]} 37. Ra3 {[%emt 0:1:23]} Rd3 {[%emt 0:0:0]} 38. Rea1 {[%emt 0:0:10]} Rad8 {[%emt 0:0:18]} 39. Nf1 {[%emt 0:0:6]} Nh5 {[%emt 0:0:19]} 40. Rxa6 {[%emt 0:0:36]} Rxb3 {[%emt 0:0:27]} 41. Ra7+ {[%emt 0:0:6]
} Kf6 {[%emt 0:0:19]} 42. R1a6 {[%emt 0:0:20]} Rd1 {[%emt 0:0:0]} 43. Rh7 {[%emt 0:0:21]} Nhg7 {[%emt 0:0:30]} 44. Rxg7 {[%emt 0:0:39]} Kxg7 {[%emt 0:0:12]} 45. Rxe6 {[%emt 0:0:2]} Rbb1 {[%emt 0:0:0]} 46. Ng3 {[%emt 0:0:5]
} Rb4 {[%emt 0:0:11]} 47. Re4 {[%emt 0:0:13]} Ra4 {[%emt 0:0:0]} 48. Rxg4+ {[%emt 0:0:5]} Kf6 {[%emt 0:0:3]} 49. Ne4+ {[%emt 0:0:13]} Kf5 {[%emt 0:0:9]} 50. Rf4+ {[%emt 0:0:1]} Ke5 {[%emt 0:0:1]} 51. Nc3 {[%emt 0:0:2]
} 1-0

[Event "FIDE World Rapid-ch Open 2018"]
[White "Inarkiev, Ernesto"]
[Black "Tomashevsky, Evgeny"]
[Site "St. Petersburg"]
[Round "14.24"]
[Annotator "ChessBase"]
[Result "1/2-1/2"]
[Date "2018.12.28"]
[WhiteElo "2693"]
[BlackElo "2705"]
[PlyCount "144"]
[TimeControl "900+10"]

1. e4 {[%emt 0:1:7]} c6 {[%emt 0:0:0]} 2. d4 {[%emt 0:0:8]} d5 {[%emt 0:0:0]} 3. e5 {[%emt 0:0:2]} Bf5 {[%emt 0:0:1]} 4. h4 {[%emt 0:0:1]} h5 {[%emt 0:0:4]
} 5. Bd3 {[%emt 0:0:4]} Bxd3 {[%emt 0:0:9]} 6. Qxd3 {[%emt 0:0:0]} e6 {[%emt 0:0:21]} 7. Bg5 {[%emt 0:0:12]} Be7 {[%emt 0:2:29]} 8. Nf3 {[%emt 0:0:8]} Nh6 {[%emt 0:0:1]} 9. Nbd2 {[%emt 0:0:5]} Nf5 {[%emt 0:0:0]} 10. Nf1 {[%emt 0:2:50]} Qa5+ {[%emt 0:4:21]} 11. c3 {[%emt 0:0:3]} Qa6 {[%emt 0:0:1]} 12. Qd2 {[%emt 0:0:1]} Nd7 {[%emt 0:0:6]} 13. Ng3 {[%emt 0:0:29]
} Nxg3 {[%emt 0:1:38]} 14. fxg3 {[%emt 0:0:5]} f6 {[%emt 0:0:0]} 15. Bf4 {[%emt 0:0:45]} 0-0-0 {[%emt 0:0:8]} 16. Qe3 {[%emt 0:1:18]} Rhe8 {[%emt 0:2:26]} 17. Kf2 {[%emt 0:0:59]} fxe5 {[%emt 0:0:3]} 18. Nxe5 {[%emt 0:0:1]
} Nxe5 {[%emt 0:0:2]} 19. Bxe5 {[%emt 0:0:48]} Rf8+ {[%emt 0:0:0]} 20. Bf4 {[%emt 0:0:54]} Bd6 {[%emt 0:0:24]} 21. Rhe1 {[%emt 0:0:24]} Bxf4 {[%emt 0:1:19]} 22. gxf4 {[%emt 0:0:1]} Rde8 {[%emt 0:0:2]} 23. g3 {[%emt 0:0:23]
} g6 {[%emt 0:0:9]} 24. Kg2 {[%emt 0:0:2]} Rf5 {[%emt 0:0:0]} 25. Qd2 {[%emt 0:0:8]} Qa5 {[%emt 0:0:43]} 26. Re3 {[%emt 0:0:33]} Qc7 {[%emt 0:0:23]} 27. Rae1 {[%emt 0:0:1]} Qd6 {[%emt 0:0:1]} 28. R1e2 {[%emt 0:1:15]
} a6 {[%emt 0:0:15]} 29. Qe1 {[%emt 0:0:2]} Rf6 {[%emt 0:0:0]} 30. Re5 {[%emt 0:0:4]} Kb8 {[%emt 0:0:5]} 31. R2e3 {[%emt 0:0:13]} Ka8 {[%emt 0:0:4]} 32. Qe2 {[%emt 0:0:8]} Qd7 {[%emt 0:0:5]} 33. Qd3 {[%emt 0:0:19]
} Rf5 {[%emt 0:0:18]} 34. Qe2 {[%emt 0:0:1]} Rxe5 {[%emt 0:0:0]} 35. Rxe5 {[%emt 0:0:2]} Qf7 {[%emt 0:0:32]} 36. Kh2 {[%emt 0:0:1]} Kb8 {[%emt 0:0:2]} 37. b3 {[%emt 0:0:2]} Qd7 {[%emt 0:0:20]} 38. Qd3 {[%emt 0:0:8]
} Qf7 {[%emt 0:0:3]} 39. Qe3 {[%emt 0:0:1]} Kc8 {[%emt 0:0:0]} 40. c4 {[%emt 0:0:4]} Kd7 {[%emt 0:0:4]} 41. c5 {[%emt 0:0:27]} Qf6 {[%emt 0:0:24]
} 42. b4 {[%emt 0:0:10]} Ke7 {[%emt 0:0:6]} 43. a4 {[%emt 0:0:0]} Kf7 {[%emt 0:0:3]} 44. b5 {[%emt 0:0:10]} axb5 {[%emt 0:0:5]} 45. axb5 {[%emt 0:0:1]} Qd8 {[%emt 0:0:2]} 46. b6 {[%emt 0:0:52]} Qa8 {[%emt 0:0:4]
} 47. Qd3 {[%emt 0:0:43]} Qa1 {[%emt 0:0:31]} 48. Re2 {[%emt 0:0:0]} Qf1 {[%emt 0:0:28]} 49. Qe3 {[%emt 0:0:1]} Qb1 {[%emt 0:0:2]} 50. Kg2 {[%emt 0:0:40]} Re7 {[%emt 0:0:20]} 51. Qe5 {[%emt 0:0:27]} Qd3 {[%emt 0:0:30]
} 52. Ra2 {[%emt 0:0:14]} Qb3 {[%emt 0:0:4]} 53. Qe2 {[%emt 0:0:0]} Qc3 {[%emt 0:0:9]} 54. Ra4 {[%emt 0:0:1]} Re8 {[%emt 0:0:11]} 55. Qf2 {[%emt 0:0:55]} Qd3 {[%emt 0:0:7]} 56. Kh2 {[%emt 0:0:1]} Qe4 {[%emt 0:0:14]
} 57. Qd2 {[%emt 0:0:7]} Qf3 {[%emt 0:0:7]} 58. Ra7 {[%emt 0:0:0]} Re7 {[%emt 0:0:1]} 59. Ra1 {[%emt 0:0:3]} Re8 {[%emt 0:0:9]} 60. Qb2 {[%emt 0:0:15]} Qe3 {[%emt 0:0:6]} 61. Ra3 {[%emt 0:0:3]} Qe1 {[%emt 0:0:14]
} 62. Qc2 {[%emt 0:0:1]} Qb4 {[%emt 0:0:19]} 63. Qd3 {[%emt 0:0:0]} Qb2+ {[%emt 0:0:7]} 64. Kg1 {[%emt 0:0:5]} Qc1+ {[%emt 0:0:7]} 65. Kg2 {[%emt 0:0:5]} Qb2+ {[%emt 0:0:3]} 66. Kf3 {[%emt 0:0:2]} Qc1 {[%emt 0:0:5]
} 67. Ra7 {[%emt 0:0:47]} Re7 {[%emt 0:0:7]} 68. Qe2 {[%emt 0:0:0]} Qh1+ {[%emt 0:0:17]} 69. Kf2 {[%emt 0:1:0]} Qh2+ {[%emt 0:0:2]} 70. Kf3 {[%emt 0:0:0]} Qh1+ {[%emt 0:0:1]} 71. Kf2 {[%emt 0:0:13]} Qh2+ {[%emt 0:0:4]
} 72. Kf3 {[%emt 0:0:1]} Qh1+ {[%emt 0:0:8] Ke4} 1/2-1/2

[Event "FIDE World Rapid-ch Open 2018"]
[White "Jobava, Baadur"]
[Black "Yuffa, Daniil"]
[Site "St. Petersburg"]
[Round "14.25"]
[Annotator "ChessBase"]
[Result "1-0"]
[Date "2018.12.28"]
[WhiteElo "2627"]
[BlackElo "2572"]
[PlyCount "79"]
[TimeControl "900+10"]

1. d4 {[%emt 0:0:0]} Nf6 {[%emt 0:0:0]} 2. c4 {[%emt 0:0:0]} g6 {[%emt 0:0:0]} 3. Nc3 {[%emt 0:0:0]} Bg7 {[%emt 0:0:0]} 4. e4 {[%emt 0:0:4]} d6 {[%emt 0:0:0]} 5. Be2 {[%emt 0:0:6]} 0-0 {[%emt 0:0:27]} 6. h4 {[%emt 0:0:0]} c5 {[%emt 0:0:9]} 7. d5 {[%emt 0:0:4]} b5 {[%emt 0:0:12]} 8. cxb5 {[%emt 0:0:4]} a6 {[%emt 0:0:1]} 9. bxa6 {[%emt 0:0:23]} Bxa6 {[%emt 0:0:0]} 10. h5 {[%emt 0:0:5]} Bxe2 {[%emt 0:1:14]} 11. Ngxe2 {[%emt 0:0:3]} Nxh5 {[%emt 0:0:40]} 12. f3 {[%emt 0:0:6]} Nd7 {[%emt 0:0:48]} 13. Kf2 {[%emt 0:0:26]
} Rb8 {[%emt 0:1:35]} 14. Rb1 {[%emt 0:0:3]} c4 {[%emt 0:0:0]} 15. g4 {[%emt 0:0:13]} Nhf6 {[%emt 0:0:2]} 16. Kg2 {[%emt 0:0:18]} Ne5 {[%emt 0:0:17]} 17. Bh6 {[%emt 0:0:20]} Qd7 {[%emt 0:0:44]} 18. Bxg7 {[%emt 0:0:34]
} Kxg7 {[%emt 0:0:1]} 19. Ng3 {[%emt 0:0:26]} h6 {[%emt 0:0:0]} 20. Qd2 {[%emt 0:0:16]} Rh8 {[%emt 0:0:3]} 21. Nce2 {[%emt 0:2:15]} Qa7 {[%emt 0:0:14]} 22. b4 {[%emt 0:1:17]} Nd3 {[%emt 0:0:29]} 23. Rhf1 {[%emt 0:0:3]
} Qa3 {[%emt 0:0:29]} 24. b5 {[%emt 0:0:11]} Ra8 {[%emt 0:0:0]} 25. Nc3 {[%emt 0:0:58]} h5 {[%emt 0:0:2]} 26. g5 {[%emt 0:0:9]} Nd7 {[%emt 0:0:5]
} 27. Nge2 {[%emt 0:0:5]} N7e5 {[%emt 0:1:14]} 28. Nd4 {[%emt 0:0:48]
} Nf4+ {[%emt 0:0:43]} 29. Kh2 {[%emt 0:0:17]} Ned3 {[%emt 0:0:0]} 30. Nc6 {[%emt 0:0:42]} Rhb8 {[%emt 0:1:20]} 31. Nxb8 {[%emt 0:0:25]
} Rxb8 {[%emt 0:0:2]} 32. b6 {[%emt 0:0:57]} Rb7 {[%emt 0:0:45]} 33. Rb5 {[%emt 0:1:23]
} Qa8 {[%emt 0:0:2]} 34. Rh1 {[%emt 0:0:38]} Qc8 {[%emt 0:0:0]} 35. Kg3 {[%emt 0:0:4]} Qd8 {[%emt 0:0:20]} 36. Rh4 {[%emt 0:1:6]} Rxb6 {[%emt 0:0:35]} 37. Rxf4 {[%emt 0:1:13]} e5 {[%emt 0:0:47]} 38. dxe6 {[%emt 0:0:23]
} Rxb5 {[%emt 0:0:16]} 39. Rxf7+ {[%emt 0:0:19]} Kg8 {[%emt 0:0:0]} 40. e7 {[%emt 0:0:9]} 1-0

[Event "FIDE World Rapid-ch Open 2018"]
[White "Postny, Evgeny"]
[Black "Akopian, Vladimir"]
[Site "St. Petersburg"]
[Round "14.26"]
[Annotator "ChessBase"]
[Result "1-0"]
[Date "2018.12.28"]
[WhiteElo "2615"]
[BlackElo "2650"]
[PlyCount "149"]
[TimeControl "900+10"]

1. d4 {[%emt 0:0:0]} Nf6 {[%emt 0:0:0]} 2. c4 {[%emt 0:0:0]} e6 {[%emt 0:0:0]} 3. Nf3 {[%emt 0:0:0]} c5 {[%emt 0:0:0]} 4. d5 exd5 {[%emt 0:0:5]} 5. cxd5 {[%emt 0:0:0]} d6 {[%emt 0:0:1]} 6. Nc3 {[%emt 0:0:2]} g6 {[%emt 0:0:4]
} 7. Bf4 {[%emt 0:0:2]} Bg7 {[%emt 0:0:5]} 8. Qa4+ {[%emt 0:0:0]} Bd7 {[%emt 0:0:3]} 9. Qb3 {[%emt 0:0:2]} Qc7 {[%emt 0:0:1]} 10. e4 {[%emt 0:0:17]} 0-0 {[%emt 0:0:26]} 11. Be2 a6 {[%emt 0:4:48]} 12. a4 {[%emt 0:0:19]
} Bg4 {[%emt 0:0:4]} 13. h3 {[%emt 0:0:37]} Bxf3 {[%emt 0:0:0]} 14. Bxf3 {[%emt 0:0:2]} Nfd7 {[%emt 0:1:59]} 15. 0-0 {[%emt 0:0:30]} Ne5 {[%emt 0:0:11]} 16. Be2 {[%emt 0:0:4]} Nbd7 {[%emt 0:0:17]} 17. Be3 {[%emt 0:0:38]
} c4 {[%emt 0:0:54]} 18. Qa2 {[%emt 0:1:55]} f5 {[%emt 0:0:45]
} 19. f4 {[%emt 0:0:21]} Nf7 {[%emt 0:4:10]} 20. exf5 {[%emt 0:0:17]} Rae8 {[%emt 0:0:26]
} 21. Bf2 {[%emt 0:1:22]} Nh6 {[%emt 0:0:53]} 22. fxg6 {[%emt 0:1:4]
} hxg6 {[%emt 0:0:2]} 23. Qxc4 {[%emt 0:0:57]} Qxc4 {[%emt 0:0:0]} 24. Bxc4 {[%emt 0:0:1]} Rxf4 {[%emt 0:0:4]} 25. Bd3 {[%emt 0:0:33]
} Ne5 {[%emt 0:0:13]} 26. Bg3 {[%emt 0:2:6]} Rb4 {[%emt 0:0:40]} 27. Rae1 {[%emt 0:3:16]
} Rf8 {[%emt 0:0:22]} 28. Rxf8+ {[%emt 0:0:38]} Kxf8 {[%emt 0:0:0]} 29. Bxg6 {[%emt 0:0:40]} Rxb2 {[%emt 0:0:20]} 30. Bh5 {[%emt 0:0:41]
} Kg8 {[%emt 0:0:22]} 31. Rf1 {[%emt 0:0:30]} Nc4 {[%emt 0:0:26]} 32. Nd1 {[%emt 0:0:35]
} Ra2 {[%emt 0:0:9]} 33. Bg6 {[%emt 0:0:38]} b5 {[%emt 0:0:0]} 34. axb5 {[%emt 0:0:2]} axb5 {[%emt 0:0:1]} 35. Nf2 {[%emt 0:0:33]} b4 {[%emt 0:1:32]} 36. Rc1 {[%emt 0:0:10]} Be5 {[%emt 0:0:4]} 37. Bh4 {[%emt 0:0:50]
} Ne3 {[%emt 0:0:32]} 38. Bg5 {[%emt 0:0:19]} Nhf5 {[%emt 0:0:0]} 39. g4 {[%emt 0:0:22]} Nd4 {[%emt 0:0:31]} 40. Rc8+ {[%emt 0:0:36]} Kg7 {[%emt 0:0:1]} 41. Bxe3 {[%emt 0:0:2]} Nf3+ {[%emt 0:0:17]} 42. Kg2 {[%emt 0:0:12]
} Nh4+ {[%emt 0:0:6]} 43. Kf1 {[%emt 0:0:1]} Kxg6 {[%emt 0:0:0]} 44. Rb8 {[%emt 0:0:22]} Ra3 {[%emt 0:0:14]} 45. Ke2 {[%emt 0:0:4]} b3 {[%emt 0:0:5]} 46. Nd3 {[%emt 0:0:8]} Ra2+ {[%emt 0:0:18]} 47. Kd1 {[%emt 0:0:5]
} Ra1+ {[%emt 0:0:12]} 48. Bc1 {[%emt 0:0:13]} Bd4 {[%emt 0:0:0]} 49. Rxb3 {[%emt 0:0:5]} Ng2 {[%emt 0:0:3]} 50. Ke2 {[%emt 0:0:9]} Ra2+ {[%emt 0:0:7]} 51. Kf3 {[%emt 0:0:7]} Nh4+ {[%emt 0:0:4]} 52. Ke4 {[%emt 0:0:1]
} Bf6 {[%emt 0:0:9]} 53. Nf4+ {[%emt 0:0:5]} Kf7 {[%emt 0:0:0]} 54. Rb7+ {[%emt 0:0:1]} Kg8 {[%emt 0:0:8]} 55. Rb8+ {[%emt 0:0:29]} Kf7 {[%emt 0:0:2]} 56. Rb7+ {[%emt 0:0:1]} Kg8 {[%emt 0:0:1]} 57. Nh5 {[%emt 0:0:24]
} Ra4+ {[%emt 0:0:9]} 58. Kd3 {[%emt 0:0:2]} Be5 {[%emt 0:0:0]} 59. g5 {[%emt 0:0:35]} Rd4+ {[%emt 0:0:17]} 60. Ke2 {[%emt 0:0:6]} Rxd5 {[%emt 0:0:22]} 61. Bf4 {[%emt 0:0:9]} Kf8 {[%emt 0:0:41]} 62. Nf6 {[%emt 0:0:35]
} Bxf6 {[%emt 0:0:12]} 63. gxf6 {[%emt 0:0:1]} Rf5 {[%emt 0:0:0]} 64. Bxd6+ {[%emt 0:0:17]} Kg8 {[%emt 0:0:2]} 65. Rg7+ {[%emt 0:0:0]} Kh8 {[%emt 0:0:1]} 66. Rg4 {[%emt 0:0:6]} Nf3 {[%emt 0:0:5]} 67. Rf4 {[%emt 0:0:19]} Rxf4 {[%emt 0:0:13]} 68. Bxf4 {[%emt 0:0:1]} Nh4 {[%emt 0:0:0]} 69. Ke3 {[%emt 0:0:15]} Kh7 {[%emt 0:0:10]} 70. Bg5 {[%emt 0:0:7]} Nf5+ {[%emt 0:0:11]} 71. Kf4 {[%emt 0:0:15]} Nd6 {[%emt 0:0:3]} 72. Ke5 {[%emt 0:0:10]
} Nf7+ {[%emt 0:0:12]} 73. Kf5 {[%emt 0:0:1]} Kg8 {[%emt 0:0:0]} 74. Bf4 {[%emt 0:0:12]} Nd8 {[%emt 0:0:28]} 75. Ke4 1-0